[Event "Belt Road Women 2019"]
[Site "Shaoxing"]
[Date "2019.07.08"]
[Round "1.9"]
[White "Zhu, Jiner"]
[Black "Zhang, Lanlin"]
[Result "1-0"]
[ECO "B04"]
[WhiteElo "2454"]
[BlackElo "2195"]
[Annotator "ChessBase"]
[PlyCount "95"]
[EventDate "2019.07.08"]
[EventType "swiss"]
[EventCountry "CHN"]
[SourceTitle "playchess.com"]
[Source "ChessBase"]
[SourceQuality "1"]
[TimeControl "5400+30"]

1. e4 {[%emt 0:00:00]} Nf6 {[%emt 0:02:26]} 2. e5 {[%emt 0:01:32]} Nd5 {[%emt 0:02:05]} 3. d4 {[%emt 0:00:13]} d6 {[%emt 0:00:04]} 4. Nf3 {[%emt 0:00:07]} g6 {[%emt 0:00:04]} 5. Bc4 {[%emt 0:01:49]} Nb6 {[%emt 0:00:06]} 6. Bb3 {[%emt 0:00:04]} Bg7 {[%emt 0:00:04]} 7. O-O {[%emt 0:00:28]} O-O {[%emt 0:00:34]} 8. a4 {[%emt 0:02:27]} Bg4 {[%emt 0:09:53]} 9. a5 {[%emt 0:09:35]} N6d7 {[%emt 0:00:12]} 10. h3 {[%emt 0:11:54]} Bxf3 {[%emt 0:00:37]} 11. Qxf3 {[%emt 0:00:05]} Nc6 {[%emt 0:00:03]} 12. c3 {[%emt 0:00:15]} a6 {[%emt 0:44:26]} 13. e6 {[%emt 0:00:30]} fxe6 {[%emt 0:03:09]} 14. Qe2 {[%emt 0:00:23]} Kh8 {[%emt 0:01:10]} 15. Qxe6 {[%emt 0:04:49]} Nf6 {[%emt 0:01:52]} 16. Nd2 {[%emt 0:01:40]} d5 {[%emt 0:08:05]} 17. Nf3 {[%emt 0:01:06]} Qd6 {[%emt 0:00:13]} 18. Ng5 {[%emt 0:08:51]} Nd8 {[%emt 0:00:41]} 19. Qe2 {[%emt 0:00:09]} Nd7 {[%emt 0:05:58]} 20. f4 {[%emt 0:06:46]} c5 {[%emt 0:02:03]} 21. dxc5 {[%emt 0:00:17]} Nxc5 {[%emt 0:00:06]} 22. Bc2 {[%emt 0:00:04]} Nf7 {[%emt 0:06:49]} 23. f5 {[%emt 0:10:39]} Nxg5 {[%emt 0:02:34]} 24. Bxg5 {[%emt 0:00:07]} e5 {[%emt 0:00:02]} 25. Rad1 {[%emt 0:04:55]} gxf5 {[%emt 0:04:50]} 26. Bxf5 {[%emt 0:00:22]} Ne6 {[%emt 0:00:03]} 27. Be3 {[%emt 0:01:25]} Nf4 {[%emt 0:01:40]} 28. Qc2 {[%emt 0:12:15]} Ng6 {[%emt 0:00:07]} 29. Rf2 {[%emt 0:03:41]} d4 {[%emt 0:02:37]} 30. Qe4 {[%emt 0:02:18]} Rad8 {[%emt 0:01:14]} 31. Bg5 {[%emt 0:01:29]} Rb8 {[%emt 0:00:29]} 32. h4 {[%emt 0:01:31]} b6 {[%emt 0:00:57]} 33. h5 {[%emt 0:01:47]} Nf4 {[%emt 0:00:03]} 34. h6 {[%emt 0:06:19]} Bf6 {[%emt 0:00:06]} 35. Rxd4 {[%emt 0:01:54]} exd4 {[%emt 0:01:24]} 36. Bxf4 {[%emt 0:00:04]} Qc5 {[%emt 0:00:04]} 37. Bxb8 {[%emt 0:00:06]} Rxb8 {[%emt 0:00:22]} 38. Qe6 {[%emt 0:01:22]} Qe5 {[%emt 0:01:07]} 39. Re2 {[%emt 0:02:33]} Qxe6 {[%emt 0:00:20]} 40. Rxe6 {[%emt 0:00:06]} Rf8 {[%emt 0:00:34]} 41. axb6 {[%emt 0:00:12]} dxc3 {[%emt 0:00:05]} 42. bxc3 {[%emt 0:00:08]} Bxc3 {[%emt 0:00:38]} 43. b7 {[%emt 0:00:08]} Kg8 {[%emt 0:00:37]} 44. Rxa6 {[%emt 0:00:22]} Bd4+ {[%emt 0:00:36]} 45. Kh1 {[%emt 0:00:07]} Be5 {[%emt 0:00:03]} 46. g4 {[%emt 0:01:02]} Rd8 {[%emt 0:01:10]} 47. Ra8 {[%emt 0:00:14]} Bb8 {[%emt 0:00:03]} 48. Bc8 {[%emt 0:00:19]} 1-0

[Event "Belt Road Women 2019"]
[Site "Shaoxing"]
[Date "2019.07.08"]
[Round "1.10"]
[White "Hu, Yu A."]
[Black "Ushenina, Anna"]
[Result "0-1"]
[ECO "C77"]
[WhiteElo "2095"]
[BlackElo "2448"]
[Annotator "NA"]
[PlyCount "42"]
[EventDate "2019.07.08"]
[EventType "swiss"]
[EventCountry "CHN"]
[SourceTitle "playchess.com"]
[Source "ChessBase"]
[SourceQuality "1"]
[TimeControl "5400+30"]

1. e4 {[%emt 0:00:00]} e5 {[%emt 0:01:06]} 2. Nf3 {[%emt 0:00:24]} Nc6 {[%emt 0:00:06]} 3. Bb5 {[%emt 0:01:02]} a6 {[%emt 0:00:49]} 4. Ba4 {[%emt 0:00:12]} Nf6 {[%emt 0:00:38]} 5. d3 {[%emt 0:01:06]} Bc5 {[%emt 0:05:45]} 6. Nc3 {[%emt 0:05:32]} d6 {[%emt 0:18:32]} 7. Nd5 {[%emt 0:13:06]} Nxd5 {[%emt 0:20:26]} 8. exd5 {[%emt 0:00:13]} b5 {[%emt 0:00:01]} 9. dxc6 {[%emt 0:00:23]} bxa4 {[%emt 0:00:01]} 10. c3 {[%emt 0:08:36]} O-O {[%emt 0:08:02]} 11. h3 {[%emt 0:23:07]} Qe8 {[%emt 0:06:17]} 12. Qxa4 {[%emt 0:00:13]} Bf5 {[%emt 0:00:59]} 13. Qc4 {[%emt 0:05:29]} e4 {[%emt 0:15:34]} 14. Nd4 {[%emt 0:00:08]} exd3+ {[%emt 0:00:32]} 15. Be3 {[%emt 0:00:07]} Bxd4 {[%emt 0:01:22]} 16. Qxd4 {[%emt 0:00:46]} Qxc6 {[%emt 0:00:14]} 17. O-O-O {[%emt 0:00:08]} Rab8 {[%emt 0:02:08]} 18. g4 {[%emt 0:04:05]} Be4 {[%emt 0:00:41]} 19. Rhe1 {[%emt 0:00:05]} Rfe8 {[%emt 0:00:13]} 20. Rd2 {[%emt 0:05:40]} a5 {[%emt 0:04:13]} 21. f4 {[%emt 0:03:06]} Rb4 {[%emt 0:04:31]} 0-1

[Event "Belt Road Women 2019"]
[Site "Shaoxing"]
[Date "2019.07.08"]
[Round "1.11"]
[White "Batsiashvili, Nino"]
[Black "Xu, Yuze"]
[Result "1/2-1/2"]
[ECO "B36"]
[WhiteElo "2433"]
[BlackElo "2083"]
[Annotator "NA"]
[PlyCount "77"]
[EventDate "2019.07.08"]
[EventType "swiss"]
[EventCountry "CHN"]
[SourceTitle "playchess.com"]
[Source "ChessBase"]
[SourceQuality "1"]
[TimeControl "5400+30"]

1. c4 {[%emt 0:00:00]} c5 {[%emt 0:00:00]} 2. Nf3 {[%emt 0:00:00]} Nf6 {[%emt 0:00:00]} 3. Nc3 {[%emt 0:00:17]} Nc6 {[%emt 0:00:00]} 4. d4 {[%emt 0:00:56]} cxd4 {[%emt 0:00:15]} 5. Nxd4 {[%emt 0:00:05]} g6 {[%emt 0:00:16]} 6. e4 {[%emt 0:02:29]} Nxd4 {[%emt 0:00:44]} 7. Qxd4 {[%emt 0:00:21]} d6 {[%emt 0:00:08]} 8. Be3 {[%emt 0:02:23]} Bg7 {[%emt 0:00:17]} 9. f3 {[%emt 0:00:24]} O-O {[%emt 0:00:11]} 10. Qd2 {[%emt 0:00:09]} a5 {[%emt 0:01:41]} 11. Rd1 {[%emt 0:09:04]} Be6 {[%emt 0:01:53]} 12. b3 {[%emt 0:06:36]} Nd7 {[%emt 0:05:45]} 13. Be2 {[%emt 0:01:08]} Nb6 {[%emt 0:09:57]} 14. O-O {[%emt 0:14:40]} a4 {[%emt 0:04:14]} 15. f4 {[%emt 0:06:11]} axb3 {[%emt 0:08:49]} 16. axb3 {[%emt 0:00:13]} Ra3 {[%emt 0:10:04]} 17. Qb2 {[%emt 0:14:59]} Nxc4 {[%emt 0:04:13]} 18. bxc4 {[%emt 0:01:58]} Qa5 {[%emt 0:20:21]} 19. f5 {[%emt 0:03:10]} Qxc3 {[%emt 0:06:01]} 20. Qxc3 {[%emt 0:05:04]} Rxc3 {[%emt 0:00:14]} 21. Bg5 {[%emt 0:14:39]} Bxc4 {[%emt 0:00:14]} 22. Bxc4 {[%emt 0:00:06]} Rxc4 {[%emt 0:00:05]} 23. Bxe7 {[%emt 0:00:04]} Re8 {[%emt 0:01:09]} 24. f6 {[%emt 0:00:35]} Bf8 {[%emt 0:02:50]} 25. Bxf8 {[%emt 0:03:13]} Kxf8 {[%emt 0:00:05]} 26. Rxd6 {[%emt 0:00:03]} Rcxe4 {[%emt 0:00:06]} 27. Rb6 {[%emt 0:01:51]} Rb8 {[%emt 0:05:59]} 28. Rfb1 {[%emt 0:06:55]} Re6 {[%emt 0:00:33]} 29. Rxb7 {[%emt 0:01:04]} Rxb7 {[%emt 0:00:07]} 30. Rxb7 {[%emt 0:00:01]} Rxf6 {[%emt 0:00:08]} 31. h4 {[%emt 0:00:02]} Kg7 {[%emt 0:01:27]} 32. g3 {[%emt 0:00:05]} g5 {[%emt 0:01:45]} 33. hxg5 {[%emt 0:00:18]} Rf5 {[%emt 0:00:04]} 34. Kg2 {[%emt 0:00:12]} Rxg5 {[%emt 0:00:05]} 35. Kf3 {[%emt 0:00:22]} Kg6 {[%emt 0:00:14]} 36. Rb6+ {[%emt 0:00:10]} f6 {[%emt 0:00:06]} 37. Rb8 {[%emt 0:00:48]} h5 {[%emt 0:02:31]} 38. Rg8+ {[%emt 0:00:15]} Kf7 {[%emt 0:00:15]} 39. Ra8 {[%emt 0:00:10]} 1/2-1/2

[Event "Belt Road Women 2019"]
[Site "Shaoxing"]
[Date "2019.07.08"]
[Round "1.12"]
[White "Yan, Tianqi"]
[Black "Tokhirjonova, Gulrukhbegim"]
[Result "0-1"]
[ECO "C78"]
[WhiteElo "2034"]
[BlackElo "2422"]
[Annotator "NA"]
[PlyCount "90"]
[EventDate "2019.07.08"]
[EventType "swiss"]
[EventCountry "CHN"]
[SourceTitle "playchess.com"]
[Source "ChessBase"]
[SourceQuality "1"]
[TimeControl "5400+30"]

1. e4 {[%emt 0:00:00]} e5 {[%emt 0:00:00]} 2. Nf3 {[%emt 0:00:04]} Nc6 3. Bb5 {[%emt 0:00:30]} a6 {[%emt 0:00:46]} 4. Ba4 {[%emt 0:00:30]} Nf6 {[%emt 0:00:30]} 5. O-O {[%emt 0:00:30]} b5 {[%emt 0:00:30]} 6. Bb3 {[%emt 0:00:30]} Bc5 {[%emt 0:00:30]} 7. c3 {[%emt 0:00:30]} d6 {[%emt 0:00:30]} 8. d4 {[%emt 0:00:30]} Bb6 {[%emt 0:00:30]} 9. h3 {[%emt 0:00:30]} O-O {[%emt 0:00:30]} 10. Re1 {[%emt 0:00:30]} h6 {[%emt 0:06:02]} 11. a4 {[%emt 0:16:15]} Bb7 {[%emt 0:02:52]} 12. Bc2 {[%emt 0:05:13]} Re8 {[%emt 0:00:54]} 13. d5 {[%emt 0:01:49]} Ne7 {[%emt 0:02:28]} 14. axb5 {[%emt 0:05:05]} axb5 {[%emt 0:00:34]} 15. Rxa8 {[%emt 0:00:12]} Bxa8 {[%emt 0:01:14]} 16. Na3 {[%emt 0:02:21]} c6 {[%emt 0:05:12]} 17. dxc6 {[%emt 0:00:29]} Bxc6 {[%emt 0:00:27]} 18. Qe2 {[%emt 0:06:07]} Qb8 {[%emt 0:23:02]} 19. Bd3 {[%emt 0:07:15]} b4 {[%emt 0:02:39]} 20. cxb4 {[%emt 0:07:10]} d5 {[%emt 0:00:30]} 21. Nd2 {[%emt 0:04:20]} Ng6 {[%emt 0:01:40]} 22. g3 {[%emt 0:08:21]} Qc8 {[%emt 0:02:24]} 23. Qf1 {[%emt 0:02:08]} Qe6 {[%emt 0:17:45]} 24. exd5 {[%emt 0:06:25]} Nxd5 {[%emt 0:02:36]} 25. b5 {[%emt 0:02:34]} Ba8 {[%emt 0:04:05]} 26. Nac4 {[%emt 0:02:06]} Ba7 {[%emt 0:00:45]} 27. Be4 {[%emt 0:09:56]} f5 {[%emt 0:01:12]} 28. Bg2 {[%emt 0:00:10]} e4 {[%emt 0:01:17]} 29. Nb1 {[%emt 0:02:30]} Rc8 {[%emt 0:03:57]} 30. Nba3 {[%emt 0:01:57]} Qf6 {[%emt 0:06:26]} 31. Rd1 {[%emt 0:03:18]} Bc5 {[%emt 0:05:03]} 32. b3 {[%emt 0:04:08]} Qf7 {[%emt 0:02:47]} 33. Kh2 {[%emt 0:01:35]} Re8 {[%emt 0:00:35]} 34. Ne3 {[%emt 0:00:53]} f4 {[%emt 0:02:21]} 35. Nxd5 {[%emt 0:00:32]} Bxd5 {[%emt 0:00:08]} 36. h4 {[%emt 0:00:29]} Bxb3 {[%emt 0:00:38]} 37. Re1 {[%emt 0:00:08]} Ne5 {[%emt 0:01:34]} 38. Bxe4 {[%emt 0:00:46]} Ng4+ {[%emt 0:00:08]} 39. Kg2 {[%emt 0:00:13]} Bxf2 {[%emt 0:02:37]} 40. Re2 {[%emt 0:00:32]} Rxe4 {[%emt 0:01:01]} 41. Rxe4 {[%emt 0:00:34]} Bd5 {[%emt 0:00:01]} 42. Qd3 {[%emt 0:00:28]} Qf5 {[%emt 0:00:08]} 43. Kf3 {[%emt 0:00:47]} fxg3+ {[%emt 0:00:11]} 44. Ke2 {[%emt 0:00:15]} Bxe4 {[%emt 0:00:10]} 45. Qd8+ {[%emt 0:00:40]} Kh7 {[%emt 0:00:05]} 0-1

[Event "Belt Road Women 2019"]
[Site "Shaoxing"]
[Date "2019.07.08"]
[Round "1.13"]
[White "Munguntuul, Batkhuyag"]
[Black "Bai, Xue"]
[Result "1-0"]
[ECO "C77"]
[WhiteElo "2412"]
[BlackElo "2029"]
[Annotator "NA"]
[PlyCount "51"]
[EventDate "2019.07.08"]
[EventType "swiss"]
[EventCountry "CHN"]
[SourceTitle "playchess.com"]
[Source "ChessBase"]
[SourceQuality "1"]
[TimeControl "5400+30"]

1. e4 {[%emt 0:00:00]} e5 {[%emt 0:00:00]} 2. Nf3 {[%emt 0:00:00]} Nc6 {[%emt 0:00:00]} 3. Bb5 {[%emt 0:00:00]} a6 {[%emt 0:00:00]} 4. Ba4 {[%emt 0:00:00]} Nf6 {[%emt 0:00:00]} 5. d3 {[%emt 0:00:00]} b5 {[%emt 0:00:07]} 6. Bb3 {[%emt 0:00:00]} Be7 {[%emt 0:00:15]} 7. Nc3 {[%emt 0:00:09]} O-O {[%emt 0:00:20]} 8. a3 {[%emt 0:03:11]} d6 {[%emt 0:00:56]} 9. Nd5 {[%emt 0:04:15]} Na5 {[%emt 0:10:27]} 10. Ba2 {[%emt 0:04:02]} Nxd5 {[%emt 0:04:36]} 11. Bxd5 {[%emt 0:00:44]} c6 {[%emt 0:01:01]} 12. Ba2 {[%emt 0:00:05]} Kh8 {[%emt 0:05:50]} 13. Bd2 {[%emt 0:07:17]} Nb7 {[%emt 0:05:47]} 14. Qe2 {[%emt 0:12:53]} c5 {[%emt 0:11:58]} 15. Bd5 {[%emt 0:05:32]} Qc7 {[%emt 0:05:24]} 16. h4 {[%emt 0:02:45]} Bg4 {[%emt 0:03:54]} 17. Qe3 {[%emt 0:00:59]} Be6 {[%emt 0:17:26]} 18. Ng5 {[%emt 0:10:35]} Bxd5 {[%emt 0:01:38]} 19. exd5 {[%emt 0:00:04]} Kg8 {[%emt 0:05:23]} 20. g4 {[%emt 0:05:12]} Bxg5 {[%emt 0:03:12]} 21. hxg5 {[%emt 0:00:28]} f5 {[%emt 0:01:34]} 22. Rxh7 {[%emt 0:05:34]} fxg4 {[%emt 0:11:03]} 23. g6 {[%emt 0:02:34]} Rf3 {[%emt 0:04:31]} 24. Qg5 {[%emt 0:00:33]} Rh3 {[%emt 0:01:46]} 25. Rxh3 {[%emt 0:01:04]} gxh3 {[%emt 0:00:06]} 26. Qh5 {[%emt 0:00:51]} 1-0

[Event "Belt Road Women 2019"]
[Site "Shaoxing"]
[Date "2019.07.08"]
[Round "1.14"]
[White "Du, Yuxin"]
[Black "Ni, Shiqun"]
[Result "0-1"]
[ECO "B04"]
[WhiteElo "2015"]
[BlackElo "2407"]
[Annotator "NA"]
[PlyCount "104"]
[EventDate "2019.07.08"]
[EventType "swiss"]
[EventCountry "CHN"]
[SourceTitle "playchess.com"]
[Source "ChessBase"]
[SourceQuality "1"]
[TimeControl "5400+30"]

1. e4 {[%emt 0:00:00]} Nf6 {[%emt 0:00:00]} 2. e5 {[%emt 0:00:00]} Nd5 {[%emt 0:00:00]} 3. c4 {[%emt 0:01:32]} Nb6 {[%emt 0:00:00]} 4. d4 {[%emt 0:00:17]} d6 {[%emt 0:00:00]} 5. exd6 {[%emt 0:00:27]} cxd6 {[%emt 0:00:00]} 6. Nc3 {[%emt 0:02:01]} g6 {[%emt 0:00:08]} 7. Be3 {[%emt 0:02:05]} Bg7 {[%emt 0:00:05]} 8. Rc1 {[%emt 0:01:50]} O-O {[%emt 0:00:10]} 9. Nf3 {[%emt 0:04:27]} Bg4 {[%emt 0:00:16]} 10. Be2 {[%emt 0:02:19]} Nc6 {[%emt 0:11:21]} 11. b3 {[%emt 0:02:48]} d5 {[%emt 0:00:19]} 12. c5 {[%emt 0:12:50]} Nc8 {[%emt 0:00:10]} 13. O-O {[%emt 0:16:57]} Bxf3 {[%emt 0:00:20]} 14. Bxf3 {[%emt 0:00:28]} e6 {[%emt 0:00:05]} 15. Ne2 {[%emt 0:27:54]} N8e7 {[%emt 0:00:49]} 16. Bg4 {[%emt 0:06:08]} Qd7 {[%emt 0:13:28]} 17. Qd2 {[%emt 0:01:39]} Rfd8 {[%emt 0:01:21]} 18. Bh6 {[%emt 0:04:19]} Bh8 {[%emt 0:02:51]} 19. h4 {[%emt 0:03:36]} f5 {[%emt 0:08:51]} 20. Bh3 {[%emt 0:00:37]} e5 {[%emt 0:00:05]} 21. dxe5 {[%emt 0:00:44]} Nxe5 {[%emt 0:02:14]} 22. Nd4 {[%emt 0:03:13]} N5c6 {[%emt 0:08:03]} 23. Nb5 {[%emt 0:02:28]} d4 {[%emt 0:06:14]} 24. h5 {[%emt 0:01:44]} Ne5 {[%emt 0:01:47]} 25. Nd6 {[%emt 0:00:32]} Nf7 {[%emt 0:00:01]} 26. Nxf7 {[%emt 0:00:46]} Kxf7 {[%emt 0:00:02]} 27. hxg6+ {[%emt 0:00:25]} hxg6 {[%emt 0:00:03]} 28. Bf4 {[%emt 0:00:34]} Nd5 {[%emt 0:10:24]} 29. Bd6 {[%emt 0:00:24]} Bf6 {[%emt 0:00:05]} 30. g3 {[%emt 0:00:38]} Nc3 {[%emt 0:01:40]} 31. Rfe1 {[%emt 0:00:43]} Re8 {[%emt 0:12:44]} 32. Bf1 {[%emt 0:00:43]} Kg7 {[%emt 0:02:08]} 33. Rxe8 {[%emt 0:00:29]} Qxe8 {[%emt 0:00:09]} 34. Re1 {[%emt 0:00:23]} Qd7 {[%emt 0:01:28]} 35. Bg2 {[%emt 0:00:48]} Rd8 {[%emt 0:03:39]} 36. b4 {[%emt 0:00:39]} Qf7 {[%emt 0:04:14]} 37. a3 {[%emt 0:00:28]} Nb5 {[%emt 0:03:22]} 38. Bf4 {[%emt 0:00:23]} Nxa3 {[%emt 0:01:55]} 39. Qd3 {[%emt 0:00:30]} Nc4 {[%emt 0:01:19]} 40. Bxb7 {[%emt 0:00:38]} Nb2 {[%emt 0:02:34]} 41. Qf3 {[%emt 0:00:30]} d3 {[%emt 0:00:08]} 42. c6 {[%emt 0:00:30]} d2 {[%emt 0:00:29]} 43. Rd1 {[%emt 0:00:30]} Nxd1 {[%emt 0:01:47]} 44. c7 {[%emt 0:00:22]} Qxc7 {[%emt 0:03:28]} 45. Bxc7 {[%emt 0:00:07]} Nxf2 {[%emt 0:00:09]} 46. Bxd8 {[%emt 0:00:35]} d1=Q+ {[%emt 0:00:03]} 47. Kxf2 {[%emt 0:00:54]} Qxd8 {[%emt 0:00:14]} 48. Qd5 {[%emt 0:00:33]} Qb6+ {[%emt 0:00:07]} 49. Kf3 {[%emt 0:00:29]} Qxb4 {[%emt 0:00:08]} 50. Qd7+ {[%emt 0:00:28]} Kh6 {[%emt 0:00:18]} 51. Bd5 {[%emt 0:00:32]} Qg4+ {[%emt 0:01:28]} 52. Kg2 {[%emt 0:00:27]} Be5 {[%emt 0:00:07]} 0-1

[Event "Belt Road Women 2019"]
[Site "Shaoxing"]
[Date "2019.07.08"]
[Round "1.15"]
[White "Soumya, Swaminathan"]
[Black "Zhang, Yuxuan"]
[Result "1-0"]
[ECO "B47"]
[WhiteElo "2402"]
[BlackElo "1987"]
[Annotator "NA"]
[PlyCount "87"]
[EventDate "2019.07.08"]
[EventType "swiss"]
[EventCountry "CHN"]
[SourceTitle "playchess.com"]
[Source "ChessBase"]
[SourceQuality "1"]
[TimeControl "5400+30"]

1. e4 {[%emt 0:00:00]} c5 {[%emt 0:00:15]} 2. Nf3 {[%emt 0:00:02]} e6 {[%emt 0:00:00]} 3. d4 {[%emt 0:00:00]} cxd4 {[%emt 0:00:00]} 4. Nxd4 {[%emt 0:00:00]} Nc6 {[%emt 0:00:00]} 5. Nc3 {[%emt 0:00:09]} a6 {[%emt 0:00:00]} 6. Be2 {[%emt 0:00:06]} Qc7 {[%emt 0:00:07]} 7. O-O {[%emt 0:00:35]} b5 {[%emt 0:00:16]} 8. Nxc6 {[%emt 0:00:46]} dxc6 {[%emt 0:00:11]} 9. a4 {[%emt 0:01:07]} b4 {[%emt 0:01:49]} 10. Nb1 {[%emt 0:00:30]} Nf6 {[%emt 0:02:59]} 11. Bd3 {[%emt 0:07:21]} a5 {[%emt 0:04:05]} 12. Qe2 {[%emt 0:03:10]} Bd6 {[%emt 0:04:05]} 13. h3 {[%emt 0:15:05]} e5 {[%emt 0:18:41]} 14. Nd2 {[%emt 0:07:33]} Be6 {[%emt 0:01:10]} 15. Nc4 {[%emt 0:01:41]} Bxc4 {[%emt 0:00:23]} 16. Bxc4 {[%emt 0:00:02]} O-O {[%emt 0:00:34]} 17. Bg5 {[%emt 0:01:16]} Nd7 {[%emt 0:05:21]} 18. Qg4 {[%emt 0:06:32]} Kh8 {[%emt 0:03:15]} 19. Rfd1 {[%emt 0:08:09]} Nb6 {[%emt 0:05:55]} 20. Bd3 {[%emt 0:05:28]} Bc5 {[%emt 0:02:56]} 21. c3 {[%emt 0:04:28]} f6 {[%emt 0:11:13]} 22. Bd2 {[%emt 0:03:36]} Rfd8 {[%emt 0:00:14]} 23. Qe2 {[%emt 0:00:28]} bxc3 {[%emt 0:01:07]} 24. Bxc3 {[%emt 0:03:24]} Bd4 {[%emt 0:00:29]} 25. Qe1 {[%emt 0:02:15]} Qa7 {[%emt 0:02:31]} 26. b3 {[%emt 0:02:22]} c5 {[%emt 0:09:16]} 27. Rac1 {[%emt 0:01:38]} Rdc8 {[%emt 0:05:53]} 28. Bb5 {[%emt 0:01:32]} Rc7 {[%emt 0:04:24]} 29. Rc2 {[%emt 0:07:41]} Nc8 {[%emt 0:02:07]} 30. Rdc1 {[%emt 0:01:14]} Nd6 {[%emt 0:01:00]} 31. Bxd4 {[%emt 0:01:50]} exd4 {[%emt 0:00:06]} 32. Bd3 {[%emt 0:00:15]} Re8 {[%emt 0:00:40]} 33. Re2 {[%emt 0:01:20]} Rce7 {[%emt 0:00:53]} 34. f4 {[%emt 0:02:22]} Qb6 {[%emt 0:09:02]} 35. e5 {[%emt 0:01:51]} fxe5 {[%emt 0:00:45]} 36. fxe5 {[%emt 0:00:02]} Nf7 {[%emt 0:00:43]} 37. Qh4 {[%emt 0:03:09]} g6 {[%emt 0:01:38]} 38. e6 {[%emt 0:04:21]} Rxe6 {[%emt 0:00:08]} 39. Bxg6 {[%emt 0:00:09]} Rxg6 {[%emt 0:00:02]} 40. Rxe8+ {[%emt 0:00:10]} Kg7 {[%emt 0:00:02]} 41. Qe7 {[%emt 0:00:29]} Qd6 {[%emt 0:03:30]} 42. Rxc5 {[%emt 0:01:17]} d3 {[%emt 0:00:48]} 43. Qxd6 {[%emt 0:01:29]} Rxd6 {[%emt 0:00:08]} 44. Re1 {[%emt 0:00:23]} 1-0

[Event "Belt Road Women 2019"]
[Site "Shaoxing"]
[Date "2019.07.08"]
[Round "1.16"]
[White "Peng, Tianlu"]
[Black "Munkhzul, Turmunkh"]
[Result "0-1"]
[ECO "A15"]
[WhiteElo "1901"]
[BlackElo "2386"]
[Annotator "NA"]
[PlyCount "56"]
[EventDate "2019.07.08"]
[EventType "swiss"]
[EventCountry "CHN"]
[SourceTitle "playchess.com"]
[Source "ChessBase"]
[SourceQuality "1"]
[TimeControl "5400+30"]

1. Nf3 {[%emt 0:00:00]} Nf6 {[%emt 0:00:00]} 2. c4 {[%emt 0:00:05]} g6 {[%emt 0:00:21]} 3. b4 {[%emt 0:00:18]} Bg7 {[%emt 0:00:41]} 4. Bb2 {[%emt 0:00:07]} O-O {[%emt 0:00:53]} 5. g3 {[%emt 0:00:06]} d6 {[%emt 0:03:56]} 6. Bg2 {[%emt 0:00:27]} Nbd7 {[%emt 0:01:47]} 7. O-O {[%emt 0:00:20]} e5 {[%emt 0:03:26]} 8. d3 {[%emt 0:01:05]} a5 {[%emt 0:03:01]} 9. b5 {[%emt 0:01:23]} Rb8 {[%emt 0:00:45]} 10. Nfd2 {[%emt 0:05:04]} b6 {[%emt 0:01:09]} 11. Nc3 {[%emt 0:02:08]} Nc5 {[%emt 0:01:20]} 12. Nb3 {[%emt 0:03:00]} Ne6 {[%emt 0:05:22]} 13. e3 {[%emt 0:03:44]} Ng5 {[%emt 0:04:36]} 14. d4 {[%emt 0:06:40]} e4 {[%emt 0:00:58]} 15. Qc2 {[%emt 0:07:13]} Bf5 {[%emt 0:12:48]} 16. Nd2 {[%emt 0:07:00]} Re8 {[%emt 0:06:09]} 17. Rac1 {[%emt 0:09:08]} Qd7 {[%emt 0:06:38]} 18. h4 {[%emt 0:10:19]} Nf3+ {[%emt 0:05:53]} 19. Kh1 {[%emt 0:04:13]} g5 {[%emt 0:08:15]} 20. hxg5 {[%emt 0:19:16]} Nxg5 {[%emt 0:00:24]} 21. c5 {[%emt 0:09:04]} Bh3 {[%emt 0:02:44]} 22. Rg1 {[%emt 0:05:07]} d5 {[%emt 0:06:32]} 23. a4 {[%emt 0:01:11]} Ng4 {[%emt 0:01:56]} 24. Rcf1 {[%emt 0:00:48]} Re6 {[%emt 0:00:26]} 25. Bxh3 {[%emt 0:01:03]} Nxh3 {[%emt 0:01:12]} 26. Rg2 {[%emt 0:00:32]} Rh6 {[%emt 0:00:15]} 27. Rh2 {[%emt 0:03:23]} Nxh2 {[%emt 0:00:39]} 28. Kg2 {[%emt 0:00:32]} Nf4+ {[%emt 0:00:22]} 0-1

[Event "Belt Road Women 2019"]
[Site "Shaoxing"]
[Date "2019.07.08"]
[Round "1.17"]
[White "Guo, Qi"]
[Black "Zhou, Yafei"]
[Result "1-0"]
[ECO "D46"]
[WhiteElo "2375"]
[BlackElo "1720"]
[Annotator "NA"]
[PlyCount "79"]
[EventDate "2019.07.08"]
[EventType "swiss"]
[EventCountry "CHN"]
[SourceTitle "playchess.com"]
[Source "ChessBase"]
[SourceQuality "1"]
[TimeControl "5400+30"]

1. d4 {[%emt 0:00:00]} d5 {[%emt 0:00:00]} 2. c4 {[%emt 0:00:00]} c6 {[%emt 0:00:00]} 3. Nf3 {[%emt 0:00:10]} Nf6 {[%emt 0:00:04]} 4. e3 {[%emt 0:00:12]} e6 {[%emt 0:00:53]} 5. Bd3 {[%emt 0:01:17]} Bd6 {[%emt 0:00:29]} 6. O-O {[%emt 0:00:10]} O-O {[%emt 0:00:38]} 7. Nbd2 {[%emt 0:00:19]} Nbd7 {[%emt 0:00:59]} 8. e4 {[%emt 0:00:24]} dxe4 {[%emt 0:00:21]} 9. Nxe4 {[%emt 0:00:08]} Nxe4 {[%emt 0:00:59]} 10. Bxe4 {[%emt 0:00:07]} Nf6 {[%emt 0:01:34]} 11. Bc2 {[%emt 0:00:08]} b6 {[%emt 0:03:04]} 12. Ne5 {[%emt 0:08:01]} Qc7 {[%emt 0:05:35]} 13. Re1 {[%emt 0:02:59]} Bb7 {[%emt 0:06:02]} 14. Bg5 {[%emt 0:05:32]} Be7 {[%emt 0:11:10]} 15. Qd3 {[%emt 0:10:42]} g6 {[%emt 0:03:22]} 16. Qh3 {[%emt 0:00:53]} Ne8 {[%emt 0:10:59]} 17. Bh6 {[%emt 0:05:15]} Ng7 {[%emt 0:03:17]} 18. Rad1 {[%emt 0:00:43]} f5 {[%emt 0:02:53]} 19. Nf3 {[%emt 0:05:31]} Bf6 {[%emt 0:14:29]} 20. Bg5 {[%emt 0:06:30]} Qe7 {[%emt 0:07:01]} 21. Qh4 {[%emt 0:00:59]} Nh5 {[%emt 0:03:10]} 22. Bb3 {[%emt 0:07:00]} Bxg5 {[%emt 0:04:58]} 23. Qxg5 {[%emt 0:00:29]} Qxg5 {[%emt 0:05:36]} 24. Nxg5 {[%emt 0:00:16]} Ng7 {[%emt 0:01:50]} 25. Nxe6 {[%emt 0:01:45]} Nxe6 {[%emt 0:01:06]} 26. Rxe6 {[%emt 0:00:06]} Rfe8 {[%emt 0:01:37]} 27. Rde1 {[%emt 0:02:13]} Kf7 {[%emt 0:03:06]} 28. c5 {[%emt 0:00:37]} Rxe6 {[%emt 0:02:04]} 29. Rxe6 {[%emt 0:01:21]} Rc8 {[%emt 0:04:31]} 30. Rxc6+ {[%emt 0:00:48]} Ke7 {[%emt 0:00:42]} 31. Rxc8 {[%emt 0:01:11]} Bxc8 {[%emt 0:00:07]} 32. f4 {[%emt 0:00:06]} bxc5 {[%emt 0:00:20]} 33. dxc5 {[%emt 0:00:05]} Bd7 {[%emt 0:00:34]} 34. Bd5 {[%emt 0:00:17]} Kd8 {[%emt 0:00:24]} 35. b4 {[%emt 0:00:35]} Kc7 {[%emt 0:00:20]} 36. Kf2 {[%emt 0:00:03]} h6 {[%emt 0:00:15]} 37. h4 {[%emt 0:00:06]} Be8 {[%emt 0:00:19]} 38. Ke3 {[%emt 0:00:03]} Kd7 {[%emt 0:00:42]} 39. Kd4 {[%emt 0:00:09]} Ke7 {[%emt 0:00:31]} 40. Ke5 {[%emt 0:00:03]} 1-0